bitfinex/quotes_ETHUSD_20260202
["timestamp","ask_amount","ask_price","bid_price","bid_amount"]
[1770047973317,1.12707933,2374.1,2373.2,1.58024118]
[1770047974151,1.12707933,2374.1,2373.2,0.52682991]
[1770047974152,1.12707932,2374.0,2373.2,0.52682991]
[1770047974446,1.12707932,2373.8,2373.0,0.001]
[1770047974616,1.12707932,2373.6,2373.0,0.001]
[1770047976735,1.12707932,2373.5,2372.8,0.001]
[1770047976937,1.12707932,2373.4,2372.8,0.001]
[1770047977121,1.39072059,2373.4,2372.8,0.001]
[1770047978742,1.39072059,2373.4,2371.3,0.001]
[1770047978743,11.93292914,2372.8,2371.3,0.001]
[1770047978971,1.1349976,2372.6,2371.3,0.001]
[1770047979249,1.1349976,2372.3,2371.3,0.001]
[1770047979538,1.51333014,2372.5,2371.3,0.001]
[1770047979539,2.04259615,2372.2,2371.3,0.001]
[1770047979752,0.90759855,2372.1,2371.3,1.05526846]
[1770047980117,0.883,2372.7,2371.3,13.01977387]
[1770047980118,1.1349976,2372.5,2371.3,13.01977387]
[1770047980321,2.39633014,2372.7,2371.3,13.01977387]
[1770047980322,0.90701303,2372.4,2371.3,13.01977387]
[1770047980564,0.90701303,2372.3,2371.3,13.01977387]
[1770047980729,1.1349976,2372.6,2371.4,1.72370051]
[1770047980934,1.1349976,2372.8,2371.4,13.68820592]
[1770047981144,0.90693998,2372.7,2371.4,13.68820592]
[1770047981343,0.90693998,2372.6,2371.4,13.68820592]
[1770047981653,2.0189976,2372.9,2371.4,13.68820592]
[1770047981833,0.90673324,2372.8,2371.5,1.47434744]
[1770047982147,0.90673324,2372.7,2371.6,0.884]
[1770047982330,0.90673324,2372.6,2371.7,1.05409621]
[1770047982527,2.0189976,2372.9,2371.7,1.05409621]
[1770047982738,0.90652723,2372.8,2371.7,1.05409621]
[1770047983056,0.90652723,2372.7,2371.8,0.61544811]
[1770047983254,1.1349976,2372.9,2371.8,0.61544811]
[1770047983463,0.90631879,2372.8,2371.8,12.57995352]
[1770047983759,14.92685997,2373.6,2371.8,12.57995352]
[1770047983760,1.1349976,2374.3,2372.6,11.96450541]
[1770047984057,1.1349976,2374.4,2373.0,11.96450541]
[1770047984252,1.02331252,2374.4,2373.1,1.19645054]
[1770047984453,0.90558929,2374.3,2373.2,1.05342996]
[1770047984659,0.90558929,2374.2,2373.2,1.05342996]
[1770047984823,1.51333014,2374.5,2373.2,1.05342996]
[1770047984824,0.0011,2373.7,2373.2,1.05342996]
[1770047985658,0.0011,2373.9,2373.2,1.93742996]
[1770047985855,1.51333014,2374.7,2373.3,0.73476004]
[1770047986056,0.90539095,2374.6,2373.3,0.73476004]
[1770047986262,0.90539095,2374.5,2373.3,0.73476004]
[1770047986493,0.90539095,2374.4,2373.4,1.05334119]
[1770047986757,0.90539095,2374.3,2373.4,1.05334119]
[1770047986961,1.51333014,2374.8,2373.5,0.6001466]
[1770047987162,0.90512741,2374.7,2373.5,0.6001466]
[1770047987339,0.90512741,2374.6,2373.5,0.6001466]
[1770047987546,0.90512741,2374.5,2373.5,12.56465201]
[1770047987747,0.0011,2374.9,2373.5,12.56465201]
[1770047987942,0.0011,2374.9,2373.7,12.91634715]
[1770047988144,0.0011,2374.9,2373.8,0.884]
[1770047988559,0.0011,2374.9,2373.9,1.05311933]
[1770047991448,0.0011,2375.1,2374.2,12.65229145]
[1770047991761,0.33741598,2375.5,2374.1,0.02108726]
[1770047991762,0.33741598,2375.5,2374.3,13.53529145]
[1770047991963,0.33741598,2375.5,2374.4,1.35352915]
[1770047992134,0.33741598,2375.5,2374.4,14.0058206]
[1770047992540,0.33741598,2375.5,2374.5,1.05285323]
[1770047993772,0.33741598,2375.5,2374.6,0.883]
[1770047994578,0.33741598,2375.5,2374.7,1.05276455]
[1770047994742,0.33741598,2375.5,2374.8,0.61468228]
[1770047994947,0.0011,2375.7,2374.8,0.61468228]
[1770047995272,0.0011,2375.7,2374.8,13.28806099]
[1770047995471,0.0011,2375.7,2374.8,13.26697373]
[1770047995654,0.0011,2375.9,2374.8,13.26697373]
[1770047995853,0.0011,2375.9,2374.9,14.08426528]
[1770047996275,0.0011,2375.9,2375.0,0.883]
[1770047996673,0.0011,2375.9,2375.1,1.05258725]
[1770047997991,0.0011,2375.5,2375.1,1.05258725]
[1770047998488,0.0011,2375.9,2375.1,1.05258725]
[1770047998784,0.0011,2376.5,2375.3,13.70479008]
[1770047999296,0.0011,2376.5,2375.3,1.05249863]
[1770048000798,0.0011,2376.5,2375.2,0.61459363]
[1770048000799,9.20870737,2376.3,2375.2,0.61459363]
[1770048000969,9.20870737,2376.3,2374.1,0.1024]
[1770048001170,9.20870737,2376.3,2374.1,0.12348726]
[1770048001377,13.99365247,2376.2,2374.2,12.65229145]
[1770048001589,13.99365247,2376.2,2374.4,12.65229145]
[1770048001791,12.1758419,2376.1,2374.4,12.65229145]
[1770048001959,1.81781057,2376.2,2374.4,12.65229145]
[1770048002163,0.89693983,2376.2,2374.8,12.67337871]
[1770048002403,0.89693983,2376.2,2374.8,12.65229145]
[1770048002570,12.1758419,2376.0,2374.2,12.65229145]
[1770048002762,0.89693983,2376.2,2374.3,13.55637871]
[1770048002961,7.130458,2376.3,2374.3,13.55637871]
[1770048003160,12.1758419,2376.0,2374.4,1.35563787]
[1770048003465,12.1758419,2376.2,2374.4,18.21946935]
[1770048003667,21.38454927,2376.0,2374.4,18.21946935]
[1770048003865,0.1024,2376.4,2374.4,18.21946935]
[1770048003866,12.2782419,2376.4,2374.5,12.65229145]
[1770048004075,0.8841,2376.5,2375.2,12.67337871]
[1770048004076,0.0011,2376.5,2375.2,12.67337871]
[1770048004362,0.0011,2376.5,2374.9,0.02108726]
[1770048004363,12.1758419,2376.1,2374.9,0.883]
[1770048004567,21.38454927,2375.8,2374.4,5.5671779]
[1770048004787,21.38454927,2376.2,2374.6,1.05280889]
[1770048004984,21.38454927,2376.2,2374.6,13.70510034]
[1770048005681,12.1758419,2376.1,2374.6,1.05280889]
[1770048005888,12.1758419,2376.0,2374.6,2.22423113]
[1770048006265,12.1758419,2376.0,2374.6,1.05280889]
[1770048006467,21.38454927,2375.7,2374.4,1.35563787]
[1770048006696,0.883,2375.7,2374.5,1.0528422]
[1770048008770,12.1758419,2376.2,2374.5,1.0528422]
[1770048008965,21.38454927,2376.1,2374.5,1.0528422]
[1770048009169,12.1758419,2376.1,2374.6,0.61472551]
[1770048009480,21.38454927,2376.1,2374.6,0.61472551]
[1770048009798,12.1758419,2376.0,2374.6,0.61472551]
[1770048010698,12.1758419,2376.0,2374.7,0.001]
[1770048010901,12.1758419,2376.0,2374.7,1.05376455]
[1770048011104,12.1758419,2376.0,2374.8,0.58795483]
[1770048011406,0.0011,2375.5,2374.8,0.58795483]
[1770048012206,0.90218376,2375.4,2374.5,0.001]
[1770048012401,0.90218376,2375.4,2373.5,4.21403295]
[1770048012402,9.20870737,2374.9,2373.5,0.001]
[1770048012602,1.78518376,2374.8,2373.5,0.001]
[1770048012804,12.1758419,2374.6,2373.5,1.05429328]
[1770048013099,12.1758419,2374.4,2373.5,0.001]
[1770048013307,0.90218376,2374.5,2373.0,4.21495545]
[1770048013308,9.20870737,2374.1,2373.0,0.001]
[1770048013503,14.57163024,2374.3,2373.1,1.05346879]
[1770048013504,1.78518376,2374.0,2373.1,1.05346879]
[1770048013680,0.90398996,2373.9,2372.8,0.001]
[1770048013879,0.99210344,2373.9,2373.1,1.05346654]
[1770048014111,0.90403555,2373.8,2372.8,0.001]
[1770048014299,0.90403555,2373.7,2373.0,1.0535137]
[1770048014609,0.883,2374.0,2373.1,1.05345915]
[1770048014904,0.90348117,2373.9,2372.8,0.001]
[1770048015077,0.90348117,2373.8,2372.8,0.001]
[1770048015283,0.90310044,2373.7,2372.8,0.001]
[1770048015480,0.883,2374.0,2372.8,0.001]
[1770048015689,0.9030725,2373.9,2372.8,0.001]
[1770048015890,0.9030725,2373.8,2372.8,1.68780518]
[1770048016202,0.883,2374.0,2372.8,1.68780518]
[1770048016776,10.70231195,2374.6,2372.8,14.34009663]
[1770048016973,1.78569109,2374.5,2372.9,1.05356315]
[1770048017171,0.90269109,2374.4,2372.9,1.05356315]
[1770048017386,0.90269109,2374.3,2373.0,1.96079124]
[1770048017601,0.90269109,2374.2,2373.1,0.883]
[1770048017809,12.1758419,2374.4,2373.1,0.883]
[1770048018006,12.1758419,2374.2,2373.1,0.883]
[1770048018304,12.1758419,2374.2,2372.9,1.05356315]
[1770048018600,13.39342609,2374.1,2373.0,0.78386209]
[1770048018804,1.21758419,2374.1,2373.0,0.78386209]
[1770048019035,0.883,2374.5,2373.1,1.05347435]
[1770048019195,0.90220323,2374.4,2373.1,1.05347435]
[1770048019384,13.05146313,2374.3,2373.1,1.05347435]
[1770048019573,12.1758419,2374.3,2373.1,1.05347435]
[1770048019901,12.1758419,2374.3,2373.0,1.05349251]
[1770048020209,1.21758419,2374.2,2373.0,1.05349251]
[1770048020990,1.21758419,2374.2,2372.8,0.001]
[1770048023318,1.21758419,2374.2,2372.8,12.57925807]
[1770048023823,0.883,2374.5,2372.8,12.57925807]
[1770048024932,0.1024,2374.0,2372.5,16.79320156]
[1770048025230,0.883,2375.2,2373.5,12.57825807]
[1770048025435,0.883,2375.2,2374.0,0.02108726]
[1770048025592,0.883,2375.2,2374.0,13.8381926]
[1770048025792,11.8804422,2375.0,2373.1,12.57825807]
[1770048026017,0.1024,2374.7,2373.1,12.57825807]
[1770048026205,11.8804422,2374.8,2373.1,12.57825807]
[1770048026206,0.1024,2374.5,2373.1,12.57825807]
[1770048026413,11.9828422,2374.1,2373.0,0.001]
[1770048026597,9.20870737,2374.2,2372.1,16.24140754]
[1770048026598,9.31110737,2373.7,2372.1,16.24140754]
[1770048026802,0.1024,2373.5,2372.2,1.62414075]
[1770048026992,0.1024,2373.3,2372.1,4.71704427]
[1770048027390,0.1024,2373.3,2372.2,12.57825807]
[1770048027591,0.1024,2373.3,2372.1,4.71704427]
[1770048028124,0.1024,2373.3,2372.1,4.7170486]
[1770048028502,11.8804422,2374.3,2372.5,12.57825807]
[1770048028711,11.9828422,2374.0,2372.6,1.25993453]
[1770048028898,11.9828422,2374.0,2372.1,18.17830667]
[1770048029092,11.9828422,2374.0,2372.2,12.57825807]
[1770048029402,13.03592305,2374.0,2372.1,5.6000486]
[1770048029600,0.1024,2373.7,2372.1,5.6000486]
[1770048029819,0.1024,2373.5,2372.1,18.17830667]
[1770048030019,0.1024,2373.5,2372.2,2.23939805]
[1770048031036,0.1024,2373.5,2372.2,12.57825807]
[1770048031869,1.18804422,2374.2,2372.5,12.57825807]
[1770048032024,0.9854,2374.1,2372.6,13.46125807]
[1770048033122,0.9854,2374.1,2372.7,1.05365195]
[1770048033324,0.21734442,2374.0,2372.8,1.87295179]
[1770048033537,0.1024,2373.9,2372.7,1.05365195]
[1770048033742,0.0011,2375.5,2373.8,0.02108726]
[1770048033935,0.0011,2375.5,2373.9,13.46125807]
[1770048035114,0.0011,2375.5,2374.0,13.63133304]
[1770048035317,0.0011,2375.5,2374.1,14.45092137]
[1770048036419,0.0011,2375.5,2374.1,15.33392137]
[1770048036767,0.0011,2375.5,2373.7,4.21258622]
[1770048036768,11.8804422,2375.3,2373.7,1.05318443]
[1770048036931,0.90161995,2375.2,2373.9,1.05311624]
[1770048037263,0.90161995,2375.2,2373.6,4.21247735]
[1770048037264,0.90161995,2375.1,2373.7,13.46125807]
[1770048037442,0.883,2375.2,2373.7,13.46125807]
[1770048037644,0.1024,2375.1,2373.6,4.21299329]
[1770048037847,10.21305938,2375.1,2373.7,0.52662457]
[1770048038052,0.1024,2374.9,2373.7,0.52662457]
[1770048038362,0.90195201,2374.8,2373.7,0.52662457]
[1770048039137,0.883,2375.2,2373.8,1.0531637]
[1770048039343,0.883,2375.2,2373.9,0.883]
[1770048039545,0.883,2375.2,2374.0,1.45144218]
[1770048040143,0.1024,2375.1,2374.0,1.45144218]
[1770048040454,1.00551201,2375.1,2373.8,1.0531637]
[1770048040650,0.1024,2374.9,2373.8,1.0531637]
[1770048041232,0.90366116,2374.8,2373.8,1.0531637]
[1770048041564,0.1024,2374.6,2373.5,1.05326901]
[1770048041764,0.1024,2374.9,2372.7,4.21450441]
[1770048041765,0.9037129,2374.5,2373.0,4.21505863]
[1770048041929,1.05268909,2374.9,2373.0,0.51090586]
[1770048041930,0.1024,2374.2,2373.0,0.51090586]
[1770048042124,0.9037129,2374.1,2373.4,1.05331101]
[1770048042350,0.9037129,2374.1,2373.2,1.05340663]
[1770048042558,0.9037129,2374.1,2373.5,1.0532945]
[1770048042862,0.9037129,2374.1,2373.0,0.001]
[1770048043067,0.1024,2374.0,2373.0,0.001]
[1770048043356,0.1024,2373.8,2373.0,0.001]
[1770048043560,0.9037129,2373.7,2373.0,0.001]
[1770048043725,0.883,2373.6,2373.0,0.001]
[1770048044062,0.9037129,2373.5,2372.2,1.05384504]
[1770048044355,0.883,2373.4,2372.2,1.0749323]
[1770048044557,1.13047032,2373.9,2372.5,12.57825807]
[1770048044754,0.70683905,2374.0,2372.5,12.57825807]
[1770048044755,0.90415812,2373.8,2372.5,12.57825807]
[1770048044935,0.90415812,2373.7,2372.4,0.883]
[1770048045141,0.90419058,2373.6,2372.5,1.05374077]
[1770048045337,1.46644062,2373.9,2372.5,1.05374077]
[1770048045338,0.1024,2373.9,2372.5,1.05374077]
[1770048045538,2.13695175,2373.9,2372.5,1.05374077]
[1770048045754,1.11777661,2373.8,2372.5,1.05374077]
[1770048045950,0.90408143,2373.7,2372.5,1.05374077]
[1770048047163,0.1024,2373.9,2372.5,1.05374077]
[1770048047164,0.90408143,2373.6,2372.5,1.05374077]
[1770048047361,1.23287032,2373.9,2372.5,1.05374077]
[1770048047667,0.90398459,2373.8,2372.5,1.05374077]
[1770048047960,0.90398459,2373.7,2372.5,1.05374077]
[1770048048163,0.21368549,2373.8,2372.5,1.05374077]
[1770048048364,0.90390169,2373.7,2372.5,1.05374077]
[1770048048553,0.21368549,2373.8,2372.5,1.05374077]
[1770048048755,0.90386017,2373.7,2372.5,1.05374077]
[1770048048944,0.21368549,2373.8,2372.5,1.05374077]
[1770048049144,0.90388281,2373.7,2372.5,1.05374077]
[1770048049452,0.21368549,2373.8,2372.5,1.05374077]
[1770048049650,0.90383362,2373.7,2372.5,1.05374077]
[1770048049856,0.1024,2373.9,2372.8,12.25487812]
[1770048050167,0.90376615,2373.8,2372.9,1.22548781]
[1770048050365,0.1024,2373.9,2372.9,1.22548781]
[1770048050574,0.90375201,2373.8,2372.9,1.22548781]
[1770048050866,10.09170737,2374.2,2372.9,1.22548781]
[1770048050867,2.01347032,2374.2,2372.9,1.22548781]
[1770048051044,0.883,2374.2,2373.0,0.883]
[1770048051232,0.883,2374.2,2373.1,12.83520289]
[1770048051740,0.883,2374.8,2373.1,12.83520289]
[1770048051942,0.9034162,2374.7,2373.1,12.83520289]
[1770048052158,0.29179865,2374.7,2373.2,1.79321003]
[1770048052468,0.0011,2374.9,2373.6,11.8028158]
[1770048052773,0.0011,2375.3,2374.3,11.78172854]
[1770048053275,0.0011,2375.3,2374.4,1.05289757]
[1770048054577,0.0011,2375.3,2374.2,1.05296436]
[1770048054735,0.0011,2375.3,2374.1,1.0530093]
[1770048054736,0.1024,2375.0,2374.1,1.0530093]
[1770048054942,1.22390065,2375.0,2374.2,1.05297576]
[1770048055144,0.1024,2375.0,2373.7,4.21282036]
[1770048055761,0.1024,2375.2,2373.8,11.78172854]
[1770048055981,0.9854,2375.2,2373.8,11.78172854]
[1770048057467,0.9854,2375.2,2373.9,1.05311933]
[1770048057673,0.9854,2375.2,2374.0,1.70473252]
[1770048057969,0.90245316,2375.1,2373.9,1.05311933]
[1770048058156,0.9854,2375.2,2373.9,12.83484787]
[1770048058765,0.883,2375.2,2374.0,0.883]
[1770048059143,0.0011,2375.5,2374.7,11.8028158]
[1770048059345,0.0011,2375.5,2374.8,14.89773034]
[1770048059776,0.0011,2375.5,2374.8,2.2330018]
[1770048059982,0.0011,2375.5,2374.8,1.05272022]
[1770048060190,0.0011,2375.5,2374.7,1.052725]
[1770048061095,0.0011,2375.5,2373.8,4.21252732]
[1770048061096,12.89751635,2375.1,2373.3,11.78172854]
[1770048061385,12.89751635,2375.1,2372.8,0.001]
[1770048061386,0.1024,2374.3,2372.8,1.05459659]
[1770048061569,1.23287032,2373.9,2372.8,0.001]
[1770048061782,2.13566617,2373.8,2372.3,4.21527102]
[1770048062079,0.1024,2373.6,2372.5,1.05371531]
[1770048062302,0.1024,2373.6,2372.1,7.87980205]
[1770048062303,1.23287032,2373.2,2372.1,3.66414947]
[1770048062448,0.1024,2373.0,2372.2,0.36641495]
[1770048062647,0.1024,2373.2,2372.2,1.42028385]
[1770048062848,2.01347032,2373.9,2372.8,1.05359571]
[1770048063097,0.883,2373.9,2372.8,1.05359571]
[1770048063379,2.2605453,2374.5,2372.8,1.05359571]
[1770048063380,0.1024,2374.3,2373.0,1.05351875]
[1770048063689,0.1024,2374.6,2373.0,13.71824729]
[1770048063997,0.1024,2374.6,2372.9,0.52680259]
[1770048063998,0.1024,2374.2,2372.9,0.52680259]
[1770048064154,0.1024,2373.8,2372.8,4.2144149]
[1770048064484,0.883,2373.8,2372.8,0.42144149]
[1770048064650,6.494817,2373.5,2372.1,3.66414947]
[1770048064852,2.13627584,2373.4,2373.3,0.001]
[1770048065202,0.1024,2373.3,2372.1,4.71804356]
[1770048065500,11.21500654,2373.1,2372.1,3.66414947]
[1770048065780,8.762565,2372.9,2372.1,3.66414947]
[1770048065978,1.00580552,2372.8,2371.8,1.05504516]
[1770048066181,0.1024,2372.8,2371.8,0.001]
[1770048066391,0.90299302,2372.7,2371.8,0.001]
[1770048066596,0.1024,2372.8,2371.8,0.001]
[1770048066778,0.883,2373.0,2371.8,0.001]
[1770048066991,0.883,2373.0,2371.8,1.05501311]
[1770048067286,0.90289095,2372.9,2371.8,0.001]
[1770048067502,0.883,2373.0,2371.8,0.001]
[1770048067700,0.90252017,2372.9,2371.8,0.001]
[1770048067882,0.883,2373.0,2371.8,0.001]
[1770048068053,0.90251989,2372.9,2371.8,0.001]
[1770048068375,1.13568783,2372.8,2371.8,0.001]
[1770048068586,24.40962793,2372.9,2371.8,0.001]
[1770048068587,2.09258234,2372.7,2371.8,0.001]
[1770048068886,0.1024,2372.5,2371.6,0.001]
[1770048069084,0.1024,2372.3,2371.6,0.001]
[1770048069286,0.883,2372.2,2371.6,0.001]
[1770048070792,0.1024,2373.1,2371.6,0.001]
[1770048071104,0.23294979,2373.1,2371.9,11.78172854]
[1770048071249,0.883,2373.2,2371.9,11.78172854]
[1770048071449,0.883,2373.2,2371.7,1.05409621]
[1770048071687,0.1024,2373.1,2371.7,1.05409621]
[1770048071862,0.1024,2373.1,2371.7,12.83582475]
[1770048072787,0.883,2373.2,2371.7,12.83582475]
[1770048072990,0.883,2373.2,2371.9,11.78172854]
[1770048073204,1.13047032,2374.1,2372.1,11.78172854]
[1770048073409,1.13047032,2374.1,2372.3,12.83555815]
[1770048073410,2.94656637,2374.0,2372.3,12.83555815]
[1770048073557,0.90054437,2373.9,2372.3,12.83555815]
[1770048073883,2.01447032,2374.1,2372.3,12.83555815]
[1770048073884,0.884,2374.1,2372.3,12.83555815]
[1770048074195,0.1024,2373.9,2372.4,1.79348766]
[1770048074762,0.884,2374.1,2372.4,13.5752162]
[1770048074962,0.1024,2374.0,2372.4,13.5752162]
[1770048075414,0.884,2374.1,2372.6,11.78172854]
[1770048075580,1.13047032,2374.8,2372.8,11.78172854]
[1770048075766,0.90030294,2374.7,2373.0,11.8028158]
[1770048075971,0.90030294,2374.7,2372.9,1.18028158]
[1770048075972,2.03081837,2374.6,2372.9,1.18028158]
[1770048076157,0.1024,2374.1,2372.5,13.71946931]
[1770048076496,10.30499598,2374.5,2372.5,13.71946931]
[1770048076497,0.884,2374.0,2372.5,13.71946931]
[1770048076789,0.0011,2373.6,2372.5,13.71946931]
[1770048076996,0.1024,2373.5,2372.4,1.05377389]
[1770048077285,0.1024,2373.3,2372.0,4.21583613]
[1770048077453,0.1024,2373.3,2371.9,0.001]
[1770048077655,0.1024,2373.1,2371.9,0.001]
[1770048077880,0.1024,2372.9,2371.9,0.001]
[1770048078079,0.1024,2373.4,2371.9,0.001]
[1770048078280,1.21500661,2373.4,2371.9,0.001]
[1770048078481,0.1024,2373.2,2371.9,0.001]
[1770048078981,0.1024,2373.2,2371.9,11.78272854]
[1770048079189,0.31419703,2373.4,2371.9,11.78272854]
[1770048079393,0.1024,2373.4,2372.0,1.0539629]
[1770048079886,0.1024,2373.4,2371.9,16.88258014]
[1770048080090,0.1024,2373.4,2372.0,1.0539629]
[1770048080473,0.1024,2373.4,2372.0,12.98127283]
[1770048081493,0.0011,2373.6,2372.0,12.98127283]
[1770048081664,0.0011,2373.6,2372.1,13.7376311]
[1770048082166,0.0011,2373.6,2372.1,13.7368311]
[1770048082497,0.0003,2373.6,2372.1,13.7368311]
[1770048082698,0.1024,2373.4,2372.0,1.0539629]
[1770048082876,0.1024,2373.2,2372.0,1.0539629]
[1770048083579,0.1024,2373.2,2371.9,4.2168516]
[1770048083899,0.884,2373.4,2372.0,11.92730993]
[1770048084095,0.884,2373.4,2372.1,1.61441615]
[1770048084598,0.884,2373.4,2372.1,13.54172608]
[1770048085383,0.884,2373.4,2372.1,1.61441615]
[1770048085384,0.90232785,2373.3,2372.1,1.61441615]
[1770048085584,0.90232785,2373.2,2371.9,0.001]
[1770048085784,0.884,2373.4,2371.9,11.92830993]
[1770048085984,0.90233127,2373.3,2371.9,11.92830993]
[1770048086190,0.90300487,2373.2,2371.9,11.92830993]
[1770048086394,0.884,2373.4,2371.9,11.92830993]
[1770048086595,0.884,2373.4,2372.1,11.92730993]
[1770048086801,0.0003,2373.6,2372.2,12.81130993]
[1770048086989,0.0003,2373.6,2372.7,11.92730993]
[1770048087192,0.0003,2373.6,2372.8,0.884]
[1770048087393,1.12344075,2374.1,2372.8,12.81130993]
[1770048087705,0.90344973,2374.0,2373.0,1.05351875]
[1770048087902,0.90344514,2373.9,2373.0,1.05351875]
[1770048088208,0.1024,2374.4,2373.0,12.98082868]
[1770048088405,0.90401565,2374.3,2373.0,12.98082868]
[1770048088587,0.90401565,2374.2,2373.0,12.98082868]
[1770048088789,0.8898,2373.4,2373.1,1.84760347]
[1770048088986,0.76900247,2373.4,2373.1,1.84760347]
[1770048089196,1.60638475,2374.4,2373.1,1.84760347]
[1770048089387,0.0011,2373.4,2373.1,1.84760347]
[1770048089798,0.0011,2373.4,2373.2,1.93742996]
[1770048089997,0.0011,2373.4,2373.3,0.79987533]
[1770048090503,0.1024,2374.4,2373.3,0.79987533]
[1770048090693,0.90493454,2374.3,2373.2,1.93742996]
[1770048090889,2.51131929,2374.2,2372.7,0.884]
[1770048091209,0.90493454,2374.1,2373.1,12.98077094]
[1770048091510,0.9875,2374.6,2373.3,11.92730993]
[1770048091809,0.90490054,2374.5,2373.4,1.05334119]
[1770048092023,0.90490054,2374.4,2373.5,13.64671152]
[1770048092178,0.0011,2374.6,2373.6,12.81130993]
[1770048093323,0.0011,2374.8,2373.7,11.94839719]
[1770048093479,0.0011,2375.3,2374.1,11.92730993]
[1770048093683,0.0011,2375.3,2374.0,0.02108726]
[1770048093684,0.0011,2375.3,2374.5,12.98016316]
[1770048093880,0.0011,2375.3,2374.6,0.883]
[1770048095602,0.0011,2375.3,2374.5,12.98016316]
[1770048095783,0.0011,2375.7,2374.8,11.92730993]
[1770048095986,9.98903603,2376.4,2375.1,11.92730993]
[1770048096214,0.9990136,2376.3,2375.2,1.30769048]
[1770048096390,0.1035,2376.5,2375.2,1.30769048]
[1770048096714,0.1035,2376.5,2375.2,0.883]
[1770048097218,0.0011,2376.5,2375.2,0.883]
[1770048097596,0.0011,2376.5,2374.8,0.883]
[1770048097802,0.0011,2376.5,2374.9,1.0526759]
[1770048098042,0.1035,2376.5,2374.9,1.0526759]
[1770048098250,1.35257035,2376.5,2375.0,1.80736894]
[1770048099734,1.35257035,2376.5,2375.1,1.05258725]
[1770048099938,0.0011,2376.5,2375.2,0.883]
[1770048100521,1.15548392,2376.5,2375.1,1.05258725]
[1770048100722,13.19693719,2376.5,2375.1,1.05258725]
[1770048100962,12.14495327,2376.5,2375.1,1.05258725]
[1770048101152,0.1024,2376.3,2375.1,1.05258725]
[1770048101461,1.35415512,2376.4,2375.1,1.05258725]
[1770048101621,0.0011,2376.5,2375.1,12.97989718]
[1770048103147,0.0011,2376.5,2375.1,12.98089718]
[1770048103348,0.0011,2376.3,2375.1,12.98089718]
[1770048106287,0.0011,2376.3,2375.1,1.05358725]
[1770048107663,0.0011,2376.3,2375.1,12.98089718]
[1770048107986,0.0011,2376.3,2375.3,1.05249863]
[1770048108286,0.0011,2376.3,2375.2,1.05250914]
[1770048108667,0.0011,2376.3,2375.2,13.41325726]
[1770048108867,0.0011,2376.5,2375.7,12.38183538]
[1770048109083,0.0011,2376.5,2375.8,13.24374812]
[1770048109287,0.0011,2376.5,2375.9,1.32648354]
[1770048109592,0.0011,2377.3,2375.9,1.32648354]
[1770048109593,0.0011,2377.3,2375.9,13.70831892]
[1770048109894,0.0011,2377.3,2376.1,12.36074812]
[1770048110090,0.0011,2377.3,2376.2,1.93509999]
[1770048110291,0.1035,2377.1,2375.9,1.0522109]
[1770048110479,0.1024,2376.9,2375.6,1.05235952]
[1770048110677,0.1024,2376.9,2375.1,0.001]
[1770048110678,0.1024,2376.4,2375.1,1.05356713]
[1770048110879,10.09143603,2376.0,2375.1,0.001]
[1770048111188,10.09143603,2376.0,2374.1,0.883]
[1770048111189,10.09143603,2375.5,2374.1,0.883]
[1770048111491,0.883,2375.4,2374.3,1.05291795]
[1770048111711,0.883,2375.4,2374.1,0.883]
[1770048111892,10.09143603,2375.1,2373.5,1.71940159]
[1770048112080,0.1024,2374.5,2373.0,0.883]
[1770048112278,0.883,2374.4,2373.0,0.883]
[1770048113297,2.06177522,2375.0,2373.3,12.06007686]
[1770048113498,0.1024,2374.7,2373.0,0.883]
[1770048113674,0.1024,2374.7,2372.9,1.05356315]
[1770048113675,0.1024,2374.5,2372.9,1.93656315]
[1770048113874,22.93804291,2374.7,2372.9,1.93656315]
[1770048113875,0.1024,2374.3,2372.9,1.93656315]
[1770048114277,0.9854,2374.3,2372.9,1.93656315]
[1770048114870,0.883,2374.3,2372.9,1.93656315]
[1770048115102,0.883,2374.3,2373.0,0.61509694]
[1770048115701,0.883,2374.3,2373.2,0.001]
[1770048115901,12.94900688,2374.1,2372.0,0.001]
[1770048116076,0.1024,2373.6,2372.0,0.001]
[1770048116270,0.1024,2373.4,2372.1,1.27418879]
[1770048116470,1.40530031,2373.4,2372.4,1.05378436]
[1770048116677,0.1024,2373.7,2372.4,1.05378436]
[1770048116878,0.89921478,2373.6,2372.4,1.05378436]
[1770048117084,0.1024,2373.8,2372.4,13.11386122]
[1770048117301,0.94428722,2374.2,2372.7,12.94307686]
[1770048117803,0.94428722,2374.2,2372.7,12.06007686]
[1770048118013,0.94428722,2374.2,2372.8,13.26608455]
[1770048118175,0.94428722,2374.2,2372.9,13.11364001]
[1770048119271,0.94428722,2374.2,2373.1,12.06007686]
[1770048119272,0.86197581,2374.2,2373.1,12.06007686]
[1770048119497,0.883,2375.4,2373.4,12.06007686]
[1770048119671,0.883,2375.4,2373.6,12.06007686]
[1770048119874,0.883,2375.4,2373.8,12.08116412]
[1770048120297,10.23141347,2375.3,2373.9,1.05311933]
[1770048120483,0.1024,2375.1,2373.9,1.93611933]
[1770048120685,0.1024,2375.3,2373.9,1.93611933]
[1770048122007,13.05140688,2374.9,2372.4,16.49530888]
[1770048122224,0.1024,2374.5,2372.7,4.21459507]
[1770048122510,0.1024,2374.3,2372.8,12.06007686]
[1770048122675,0.1024,2374.3,2372.7,0.883]
[1770048122876,0.1024,2374.3,2372.7,12.94307686]
[1770048123105,0.883,2374.4,2373.0,12.06007686]
[1770048123309,0.1024,2375.3,2373.3,12.06007686]
[1770048123507,0.1024,2375.1,2373.5,12.06007686]
[1770048123712,1.50508475,2376.3,2374.3,12.06007686]
[1770048123913,0.5630633,2375.9,2374.4,0.883]
[1770048124245,0.0011,2376.3,2374.6,13.11288575]
[1770048124378,0.1035,2376.3,2374.6,13.11288575]
[1770048124585,0.89810236,2376.2,2374.7,0.883]
[1770048124914,0.89810236,2376.1,2374.7,0.883]
[1770048125205,0.1024,2376.0,2374.7,0.883]
[1770048125416,1.02310146,2376.0,2374.7,0.883]
[1770048125583,0.1024,2375.8,2374.5,1.29430769]
[1770048125906,0.1024,2375.6,2374.5,1.05284601]
[1770048126109,0.1024,2375.6,2374.4,1.05286465]
[1770048126410,1.50398475,2376.1,2374.3,4.21171859]
[1770048126612,1.50398475,2376.1,2374.3,16.27179545]
[1770048126613,0.1024,2375.9,2374.3,16.27179545]